fUSD/lending_fUSD_20240428
["ID","MTS","AMOUNT","RATE_DAILY","PERIOD"]
[59455,1714333873907,-500.0,0.00012054,2]
[59456,1714333873917,-500.0,0.00012054,2]
[59457,1714333873926,-500.0,0.00012054,2]
[59458,1714333873937,-500.0,0.00012054,2]
[59459,1714333873947,-500.0,0.00012054,2]
[59460,1714333873956,-500.0,0.00012054,2]
[59461,1714333873966,-500.0,0.00012054,2]
[59462,1714333873976,-500.0,0.00012054,2]
[59463,1714333873986,-500.0,0.00012054,2]
[59464,1714333873995,-500.0,0.00012054,2]
[59465,1714333874005,-512.94,0.00012054,2]
[59466,1714333874015,-500.0,0.00012054,2]
[59467,1714333874025,-500.0,0.00012054,2]
[59468,1714333874039,-500.0,0.00012054,2]
[59469,1714333874048,-500.0,0.00012054,2]
[59470,1714333874057,-500.0,0.00012054,2]
[59471,1714333874068,-500.0,0.00012054,2]
[59472,1714333874078,-580.36,0.00012054,2]
[59473,1714333874088,-500.0,0.00012054,2]
[59474,1714333874097,-500.0,0.00012054,2]
[59475,1714333874109,-500.0,0.00012054,2]
[59476,1714333874120,-1209.6,0.00012054,2]
[59477,1714333874130,-500.0,0.00012054,2]
[59478,1714333874139,-493.45,0.00012054,2]
[59479,1714333874149,-500.0,0.00012054,2]
[59480,1714333874158,-500.0,0.00012054,2]
[59481,1714333874168,-500.0,0.00012054,2]
[59482,1714333874177,-500.0,0.00012054,2]
[59483,1714333874187,-500.0,0.00012054,2]
[59484,1714333874197,-500.0,0.00012054,2]
[59485,1714333874207,-500.0,0.00012054,2]
[59486,1714333874217,-364.2430908,0.00012054,2]
[59487,1714333874227,-500.0,0.00012054,2]
[59488,1714333874236,-500.0,0.00012054,2]
[59489,1714333874245,-500.0,0.00012054,2]
[59490,1714333874255,-500.0,0.00012054,2]
[59491,1714333874265,-500.0,0.00012054,2]
[59492,1714333874274,-500.0,0.00012054,2]
[59493,1714333874284,-500.0,0.00012054,2]
[59494,1714333874295,-500.0,0.00012054,2]
[59495,1714333874304,-500.0,0.00012054,2]
[59496,1714333874314,-500.0,0.00012054,2]
[59497,1714333874323,-500.0,0.00012054,2]
[59498,1714333874333,-718.62,0.00012054,2]
[59499,1714333874342,-500.0,0.00012054,2]
[59500,1714333874351,-749.09,0.00012054,2]
[59501,1714333874360,-590.86,0.00012054,2]
[59502,1714333874370,-223.90362087,0.00012054,2]
[59503,1714333874379,-500.0,0.00012054,2]
[59504,1714333874389,-500.0,0.00012054,2]
[59505,1714333874399,-453.22,0.00012054,2]
[59506,1714333874409,-500.0,0.00012054,2]
[59507,1714333874418,-500.0,0.00012054,2]
[59508,1714333874429,-500.0,0.00012054,2]
[59509,1714333874439,-500.0,0.00012054,2]
[59510,1714333874448,-500.0,0.00012054,2]
[59511,1714333874458,-500.0,0.00012054,2]
[59512,1714333874468,-651.61,0.00012054,2]
[59513,1714333874477,-500.0,0.00012054,2]
[59514,1714333874487,-596.5,0.00012054,2]
[59515,1714333874497,-150.36,0.00012054,2]
[59516,1714333874506,-500.0,0.00012054,2]
[59517,1714333874516,-500.0,0.00012054,2]
[59518,1714333874526,-177.11,0.00012054,2]
[59519,1714333874536,-500.0,0.00012054,2]
[59520,1714333874546,-500.0,0.00012054,2]
[59521,1714333874555,-509.59,0.00012054,2]
[59522,1714333874564,-500.0,0.00012054,2]
[59523,1714333874574,-150.16,0.00012054,2]
[59524,1714333874584,-817.82,0.00012054,2]
[59525,1714333874594,-500.0,0.00012054,2]
[59526,1714333874604,-500.0,0.00012054,2]
[59527,1714333874614,-500.0,0.00012054,2]
[59528,1714333874623,-633.38,0.00012054,2]
[59529,1714333874633,-500.0,0.00012054,2]
[59530,1714333874642,-500.0,0.00012054,2]
[59531,1714333874653,-500.0,0.00012054,2]
[59532,1714333874663,-500.0,0.00012054,2]
[59533,1714333874673,-500.0,0.00012054,2]
[59534,1714333874683,-784.15,0.00012054,2]
[59535,1714333874693,-980.94,0.00012054,2]
[59536,1714333874703,-500.0,0.00012054,2]
[59537,1714333874713,-500.0,0.00012054,2]
[59538,1714333874723,-732.51,0.00012054,2]
[59539,1714333874733,-500.0,0.00012054,2]
[59540,1714333874743,-500.0,0.00012054,2]
[59541,1714333874753,-683.63,0.00012054,2]
[59542,1714333874763,-500.0,0.00012054,2]
[59543,1714333874772,-500.0,0.00012054,2]
[59544,1714333874782,-500.0,0.00012054,2]
[59545,1714333874792,-500.0,0.00012054,2]
[59546,1714333874801,-500.0,0.00012054,2]
[59547,1714333874811,-500.0,0.00012054,2]
[59548,1714333874821,-500.0,0.00012054,2]
[59549,1714333874830,-500.0,0.00012054,2]
[59550,1714333874840,-500.0,0.00012054,2]
[59551,1714333874850,-500.0,0.00012054,2]
[59552,1714333874860,-252.73,0.00012054,2]
[59553,1714333874870,-500.0,0.00012054,2]
[59554,1714333874880,-500.0,0.00012054,2]
[59555,1714333874890,-551.24,0.00012054,2]
[59556,1714333874900,-500.0,0.00012054,2]
[59557,1714333874910,-301.37048683,0.00012054,2]
[59558,1714333874920,-913.73,0.00012054,2]
[59559,1714333874929,-500.0,0.00012054,2]
[59560,1714333874939,-284.07451957,0.00012054,2]
[59561,1714333874952,-500.0,0.00012054,2]
[59562,1714333874962,-500.0,0.00012054,2]
[59563,1714333874977,-500.0,0.00012054,2]
[59564,1714333874987,-500.0,0.00012054,2]
[59565,1714333875011,-500.0,0.00012054,2]
[59566,1714333875033,-500.0,0.00012054,2]
[59567,1714333875047,-500.0,0.00012054,2]
[59568,1714333875071,-500.0,0.00012054,2]
[59569,1714333875099,-500.0,0.00012054,2]
[59570,1714333875110,-651.82,0.00012054,2]
[59571,1714333875122,-500.0,0.00012054,2]
[59572,1714333875143,-970.58,0.00012054,2]
[59573,1714333875173,-500.0,0.00012054,2]
[59574,1714333875184,-615.87,0.00012054,2]
[59575,1714333875194,-500.0,0.00012054,2]
[59576,1714333875204,-500.0,0.00012054,2]
[59577,1714333875214,-500.0,0.00012054,2]
[59578,1714333875285,-500.0,0.00012054,2]
[59579,1714333875295,-634.81,0.00012054,2]
[59580,1714333875304,-1130.44,0.00012054,2]
[59581,1714333875314,-500.0,0.00012054,2]
[59582,1714333875323,-500.0,0.00012054,2]
[59583,1714333875333,-594.1,0.00012054,2]
[59584,1714333875342,-500.0,0.00012054,2]
[59585,1714333875351,-500.0,0.00012054,2]
[59586,1714333875361,-610.07,0.00012054,2]
[59587,1714333875370,-500.0,0.00012054,2]
[59588,1714333875379,-802.03,0.00012054,2]
[59589,1714333875389,-500.0,0.00012054,2]
[59590,1714333875398,-500.0,0.00012054,2]
[59591,1714333875408,-500.0,0.00012054,2]
[59592,1714333875417,-500.0,0.00012054,2]
[59593,1714333875427,-500.0,0.00012054,2]
[59594,1714333875437,-2244.82,0.00012054,2]
[59595,1714333875446,-841.44,0.00012054,2]
[59596,1714333875456,-500.0,0.00012054,2]
[59597,1714333875466,-500.0,0.00012054,2]
[59598,1714333875475,-500.0,0.00012054,2]
[59599,1714333875485,-643.85,0.00012054,2]
[59600,1714333875496,-500.0,0.00012054,2]
[59601,1714333875506,-598.88,0.00012054,2]
[59602,1714333875515,-500.0,0.00012054,2]
[59603,1714333875526,-1510.64,0.00012054,2]
[59604,1714333875536,-500.0,0.00012054,2]
[59605,1714333875546,-7836.77,0.00012054,2]
[59606,1714333875556,-500.0,0.00012054,2]
[59607,1714333875565,-500.0,0.00012054,2]
[59608,1714333875575,-2120.38,0.00012054,2]
[59609,1714333875584,-500.0,0.00012054,2]
[59610,1714333875594,-500.0,0.00012054,2]
[59611,1714333875604,-3738.06,0.00012054,2]
[59612,1714333875614,-437.51,0.00012054,2]
[59613,1714333875623,-500.0,0.00012054,2]
[59614,1714333875633,-500.0,0.00012054,2]
[59615,1714333875643,-930.99,0.00012054,2]
[59616,1714333875653,-500.0,0.00012054,2]
[59617,1714333875663,-500.0,0.00012054,2]
[59618,1714333875673,-809.24,0.00012054,2]
[59619,1714333875685,-552.44,0.00012054,2]
[59620,1714333875694,-500.0,0.00012054,2]
[59621,1714333875704,-500.0,0.00012054,2]
[59622,1714333875715,-314.79877222,0.00012054,2]
[59623,1714333875725,-500.0,0.00012054,2]
[59624,1714333875735,-851.63,0.00012054,2]
[59625,1714333875745,-500.0,0.00012054,2]
[59626,1714333875755,-956.01,0.00012054,2]
[59627,1714333875767,-500.0,0.00012054,2]
[59628,1714333875777,-500.0,0.00012054,2]
[59629,1714333875787,-427.16035441,0.00012054,2]
[59630,1714333875798,-935.48,0.00012054,2]
[59631,1714333875808,-500.0,0.00012054,2]
[59632,1714333875818,-500.0,0.00012054,2]
[59633,1714333875828,-669.74,0.00012054,2]
[59634,1714333875838,-1854.49,0.00012054,2]
[59635,1714333875848,-645.1270674,0.00012054,2]
[59636,1714333875859,-500.0,0.00012054,2]
[59637,1714333875869,-2438.98,0.00012054,2]
[59638,1714333875879,-500.0,0.00012054,2]
[59639,1714333875889,-500.0,0.00012054,2]
[59640,1714333875899,-557.3,0.00012054,2]
[59641,1714333875909,-500.0,0.00012054,2]
[59642,1714333875919,-500.0,0.00012054,2]
[59643,1714333875928,-500.0,0.00012054,2]
[59644,1714333875939,-3234.99,0.00012054,2]
[59645,1714333875949,-500.0,0.00012054,2]
[59646,1714333875958,-1163.73,0.00012054,2]
[59647,1714333875968,-500.0,0.00012054,2]
[59648,1714333875977,-1439.84,0.00012054,2]
[59649,1714333875986,-500.0,0.00012054,2]
[59650,1714333875995,-2793.67,0.00012054,2]
[59651,1714333876004,-500.0,0.00012054,2]
[59652,1714333876014,-500.0,0.00012054,2]
[59653,1714333876024,-500.0,0.00012054,2]
[59654,1714333876033,-274.19770028,0.00012054,2]
[59655,1714333876045,-1468.32,0.00012054,2]
[59656,1714333876054,-500.0,0.00012054,2]
[59657,1714333876064,-2433.94,0.00012054,2]
[59658,1714333876074,-500.0,0.00012054,2]
[59659,1714333876084,-500.0,0.00012054,2]
[59660,1714333876093,-3274.87,0.00012054,2]
[59661,1714333876103,-7669.52,0.00012054,2]
[59662,1714333876113,-1149.81,0.00012054,2]
[59663,1714333876123,-920.14,0.00012054,2]
[59664,1714333876132,-500.0,0.00012054,2]
[59665,1714333876142,-500.0,0.00012054,2]
[59666,1714333876151,-500.0,0.00012054,2]
[59667,1714333876160,-500.0,0.00012054,2]
[59668,1714333876170,-500.0,0.00012054,2]
[59669,1714333876179,-935.36,0.00012054,2]
[59670,1714333876188,-1205.49,0.00012054,2]
[59671,1714333876198,-500.0,0.00012054,2]
[59672,1714333876208,-500.0,0.00012054,2]
[59673,1714333876217,-449.13182593,0.00012054,2]
[59674,1714333876227,-500.0,0.00012054,2]
[59675,1714333876236,-1295.23,0.00012054,2]
[59676,1714333876245,-500.0,0.00012054,2]
[59677,1714333876255,-1020.65,0.00012054,2]
[59678,1714333876264,-1568.12,0.00012054,2]
[59679,1714333876273,-500.0,0.00012054,2]
[59680,1714333876283,-500.0,0.00012054,2]
[59681,1714333876292,-500.0,0.00012054,2]
[59682,1714333876302,-500.0,0.00012054,2]
[59683,1714333876311,-820.48,0.00012054,2]
[59684,1714333876320,-500.0,0.00012054,2]
[59685,1714333876330,-500.0,0.00012054,2]
[59686,1714333876339,-500.0,0.00012054,2]
[59687,1714333876349,-500.0,0.00012054,2]
[59688,1714333876358,-500.0,0.00012054,2]
[59689,1714333876367,-500.0,0.00012054,2]
[59690,1714333876377,-642.64,0.00012054,2]
[59691,1714333876387,-500.0,0.00012054,2]
[59692,1714333876397,-845.66676837,0.00012054,2]
[59693,1714333876421,-32.06323163,0.00012054,2]
[59694,1714333876431,-1549.96,0.00012054,2]
[59695,1714333876442,-500.0,0.00012054,2]
[59696,1714333876452,-500.0,0.00012054,2]
[59697,1714333876462,-686.14,0.00012054,2]
[59698,1714333876474,-500.0,0.00012054,2]
[59699,1714333876484,-500.0,0.00012054,2]
[59700,1714333876496,-1200.84,0.00012054,2]
[59701,1714333876506,-2087.69,0.00012054,2]
[59702,1714333876519,-736.19,0.00012054,2]
[59703,1714333876529,-179.43069784,0.00012054,2]
[59704,1714333876543,-368.9719517,0.00012054,2]
[59705,1714333876555,-485.50735046,0.00012054,2]
[59706,1714333876567,-1078.64,0.00012054,2]
[59707,1714333876578,-500.0,0.00012054,2]
[59708,1714333876587,-127.73227014,0.00012054,2]
[59709,1714333876603,-372.26772986,0.00012054,2]
[59710,1714333876612,-500.0,0.00012054,2]
[59711,1714333876625,-115.91038493,0.00012054,2]
[59712,1714333876637,-391.95961507,0.00012054,2]
[59713,1714333876647,-660.63,0.00012054,2]
[59714,1714333876657,-1394.6,0.00012054,2]
[59715,1714333876666,-285.8031198,0.00012054,2]
[59716,1714333876676,-3293.48,0.00012054,2]
[59717,1714333876692,-271.21,0.00012054,2]
[59718,1714333876701,-229.35,0.00012054,2]
[59719,1714333876711,-500.0,0.00012054,2]
[59720,1714333876720,-500.0,0.00012054,2]
[59721,1714333876729,-1383.26,0.00012054,2]
[59722,1714333876739,-500.0,0.00012054,2]
[59723,1714333876748,-666.21,0.00012054,2]
[59724,1714333876766,-1038.55,0.00012054,2]
[59725,1714333876776,-582.9,0.00012054,2]
[59726,1714333876785,-2363.73,0.00012054,2]
[59727,1714333876794,-628.40276414,0.00012054,2]
[59728,1714333876803,-500.0,0.00012054,2]
[59729,1714333876812,-500.0,0.00012054,2]
[59730,1714333876825,-1482.37,0.00012054,2]
[59731,1714333876835,-581.73,0.00012054,2]
[59732,1714333876844,-635.98,0.00012054,2]
[59733,1714333876853,-519.27,0.00012054,2]
[59734,1714333876862,-1107.0,0.00012054,2]
[59735,1714333876872,-802.45,0.00012054,2]
[59736,1714333876881,-500.0,0.00012054,2]
[59737,1714333876892,-500.0,0.00012054,2]
[59738,1714333876902,-1887.52,0.00012054,2]
[59739,1714333876912,-500.0,0.00012054,2]
[59740,1714333876921,-500.0,0.00012054,2]
[59741,1714333876930,-500.0,0.00012054,2]
[59742,1714333876939,-500.0,0.00012054,2]
[59743,1714333876948,-500.0,0.00012054,2]
[59744,1714333876957,-2646.6,0.00012054,2]
[59745,1714333876967,-500.0,0.00012054,2]
[59746,1714333876976,-1312.38,0.00012054,2]
[59747,1714333876985,-500.0,0.00012054,2]
[59748,1714333876994,-2191.19,0.00012054,2]
[59749,1714333877003,-500.0,0.00012054,2]
[59750,1714333877013,-2890.81,0.00012054,2]
[59751,1714333877023,-1910.63,0.00012054,2]
[59752,1714333877036,-1435.69,0.00012054,2]
[59753,1714333877045,-500.0,0.00012054,2]
[59754,1714333877055,-1377.83,0.00012054,2]
[59755,1714333877064,-500.0,0.00012054,2]
[59756,1714333877074,-500.0,0.00012054,2]
[59757,1714333877084,-500.0,0.00012054,2]
[59758,1714333877093,-500.0,0.00012054,2]
[59759,1714333877102,-500.0,0.00012054,2]
[59760,1714333877112,-814.52,0.00012054,2]
[59761,1714333877123,-516.16,0.00012054,2]
[59762,1714333877132,-877.24,0.00012054,2]
[59763,1714333877141,-500.0,0.00012054,2]
[59764,1714333877151,-2530.69,0.00012054,2]
[59765,1714333877160,-430.49249687,0.00012054,2]
[59766,1714333877168,-500.0,0.00012054,2]
[59767,1714333877178,-500.0,0.00012054,2]
[59768,1714333877188,-621.4,0.00012054,2]
[59769,1714333877197,-500.0,0.00012054,2]
[59770,1714333877206,-500.0,0.00012054,2]
[59771,1714333877215,-2915.48,0.00012054,2]
[59772,1714333877225,-1278.3,0.00012054,2]
[59773,1714333877234,-500.0,0.00012054,2]
[59774,1714333877243,-1146.85,0.00012054,2]
[59775,1714333877252,-500.0,0.00012054,2]
[59776,1714333877262,-500.0,0.00012054,2]
[59777,1714333877271,-500.0,0.00012054,2]
[59778,1714333877288,-763.84,0.00012054,2]
[59779,1714333877298,-3171.22,0.00012054,2]
[59780,1714333877310,-630.5,0.00012054,2]
[59781,1714333877320,-233.54723251,0.00012054,2]
[59782,1714333877330,-2674.38,0.00012054,2]
[59783,1714333877342,-500.0,0.00012054,2]
[59784,1714333877352,-2017.39,0.00012054,2]
[59785,1714333877364,-500.0,0.00012054,2]
[59786,1714333877373,-243.36,0.00012054,2]
[59787,1714333877386,-500.0,0.00012054,2]
[59788,1714333877395,-856.24,0.00012054,2]
[59789,1714333877406,-534.56,0.00012054,2]
[59790,1714333877417,-500.0,0.00012054,2]
[59791,1714333877427,-500.0,0.00012054,2]
[59792,1714333877445,-500.0,0.00012054,2]
[59793,1714333877456,-500.0,0.00012054,2]
[59794,1714333877467,-500.0,0.00012054,2]
[59795,1714333877479,-500.0,0.00012054,2]
[59796,1714333877489,-500.0,0.00012054,2]
[59797,1714333877503,-500.0,0.00012054,2]
[59798,1714333877513,-500.0,0.00012054,2]
[59799,1714333877527,-500.0,0.00012054,2]
[59800,1714333877538,-1121.09,0.00012054,2]
[59801,1714333877553,-978.42,0.00012054,2]
[59802,1714333877562,-500.0,0.00012054,2]
[59803,1714333877572,-657.57,0.00012054,2]
[59804,1714333877582,-500.0,0.00012054,2]
[59805,1714333877592,-8320.09,0.00012054,2]
[59806,1714333877615,-908.28,0.00012054,2]
[59807,1714333877625,-532.07,0.00012054,2]
[59808,1714333877644,-500.0,0.00012054,2]
[59809,1714333877658,-500.0,0.00012054,2]
[59810,1714333877669,-509.22,0.00012054,2]
[59811,1714333877699,-500.0,0.00012054,2]
[59812,1714333877708,-647.31,0.00012054,2]
[59813,1714333877718,-914.72,0.00012054,2]
[59814,1714333877728,-500.0,0.00012054,2]
[59815,1714333877737,-500.0,0.00012054,2]
[59816,1714333877746,-500.0,0.00012054,2]
[59817,1714333877756,-2679.01289698,0.00012054,2]
[59818,1714333877771,-1174.56710302,0.00012054,2]
[59819,1714333877781,-942.92,0.00012054,2]
[59820,1714333877790,-673.74,0.00012054,2]
[59821,1714333877799,-500.0,0.00012054,2]
[59822,1714333877808,-616.12637698,0.00012054,2]
[59823,1714333877820,-89.58362302,0.00012054,2]
[59824,1714333877829,-498.17005491,0.00012079,2]
[59825,1714333877840,-501.82994509,0.00012079,2]
[59826,1714333877850,-239.00316447,0.00012178,2]
[59827,1714333877861,-3175.82164568,0.00012178,2]
[59828,1714333877872,-406.24944498,0.00012178,2]
[59829,1714333877884,-1083.41544045,0.00012178,2]
[59830,1714333877893,-645.91,0.00012327,2]
[59831,1714333877903,-270.45808915,0.00012328,2]
[59832,1714333877914,-229.54191085,0.00012328,2]
[59833,1714333877923,-500.0,0.00012328,2]
[59834,1714333877932,-500.0,0.00012328,2]
[59835,1714333877942,-500.0,0.00012328,2]
[59836,1714333877951,-500.0,0.00012328,2]
[59837,1714333877960,-500.0,0.00012328,2]
[59838,1714333877969,-500.0,0.00012328,2]
[59839,1714333877979,-500.0,0.00012328,2]
[59840,1714333877989,-500.0,0.00012328,2]
[59841,1714333877998,-500.0,0.00012328,2]
[59842,1714333878008,-500.0,0.00012328,2]
[59843,1714333878017,-500.0,0.00012328,2]
[59844,1714333878028,-500.0,0.00012328,2]
[59845,1714333878040,-275.92123062,0.00012328,2]
[59846,1714333878049,-500.0,0.00012328,2]
[59847,1714333878059,-500.0,0.00012328,2]
[59848,1714333878068,-95.17945344,0.00012328,2]
[59849,1714333878081,-329.89486822,0.00012328,2]
[59850,1714333878093,-74.92567834,0.00012328,2]
[59851,1714333878102,-401.27534586,0.00012328,2]
[59852,1714333878114,-98.72465414,0.00012328,2]
[59853,1714333878125,-295.31227394,0.00012328,2]
[59854,1714333878137,-204.68772606,0.00012328,2]
[59855,1714333878146,-118.18880659,0.00012328,2]
[59856,1714333878351,-500.0,0.00010958,2]
[59857,1714333878361,-500.0,0.00010958,2]
[59858,1714333878371,-500.0,0.00011232,2]
[59859,1714333878380,-500.0,0.00011506,2]
[59860,1714333878389,-381.81119341,0.00012328,2]
[59861,1714333878398,-500.0,0.00012328,2]
[59862,1714333878408,-500.0,0.00012328,2]
[59863,1714333878417,-326.69397393,0.00012328,2]
[59864,1714333878426,-500.0,0.00012328,2]
[59865,1714333878436,-500.0,0.00012328,2]
[59866,1714333878445,-500.0,0.00012328,2]
[59867,1714333878455,-500.0,0.00012328,2]
[59868,1714333878464,-500.0,0.00012328,2]
[59869,1714333878473,-500.0,0.00012328,2]
[59870,1714333878482,-500.0,0.00012328,2]
[59871,1714333878492,-517.38677167,0.00012328,2]
[59872,1714333878501,-500.0,0.00012328,2]
[59873,1714333878510,-500.0,0.00012328,2]
[59874,1714333878520,-500.0,0.00012328,2]
[59875,1714333878529,-500.0,0.00012328,2]
[59876,1714333878539,-500.0,0.00012328,2]
[59877,1714333878548,-500.0,0.00012328,2]
[59878,1714333878558,-500.0,0.00012328,2]
[59879,1714333878567,-500.0,0.00012328,2]
[59880,1714333878577,-500.0,0.00012328,2]
[59881,1714333878586,-500.0,0.00012328,2]
[59882,1714333878595,-500.0,0.00012328,2]
[59883,1714333878605,-500.0,0.00012328,2]
[59884,1714333878614,-500.0,0.00012328,2]
[59885,1714333878623,-504.66543746,0.00012328,2]
[59886,1714333878633,-500.0,0.00012328,2]
[59887,1714333878642,-500.0,0.00012328,2]
[59888,1714333878652,-500.0,0.00012328,2]
[59889,1714333878661,-500.0,0.00012328,2]
[59890,1714333878671,-500.0,0.00012328,2]
[59891,1714333878680,-500.0,0.00012328,2]
[59892,1714333878690,-500.0,0.00012328,2]
[59893,1714333878699,-500.0,0.00012328,2]
[59894,1714333878709,-500.0,0.00012328,2]
[59895,1714333878718,-500.0,0.00012328,2]
[59896,1714333878727,-500.0,0.00012328,2]
[59897,1714333878737,-500.0,0.00012328,2]
[59898,1714333878747,-500.0,0.00012328,2]
[59899,1714333878757,-500.0,0.00012328,2]
[59900,1714333878766,-500.0,0.00012328,2]
[59901,1714333878776,-500.0,0.00012328,2]
[59902,1714333878786,-500.0,0.00012328,2]
[59903,1714333878794,-500.0,0.00012328,2]
[59904,1714333878803,-300.9,0.00012328,2]
[59905,1714333878812,-500.0,0.00012328,2]
[59906,1714333878820,-500.0,0.00012328,2]
[59907,1714333878829,-500.0,0.00012328,2]
[59908,1714333878838,-194.60724494,0.00012328,2]
[59909,1714333878847,-500.0,0.00012328,2]
[59910,1714333878857,-500.0,0.00012328,2]
[59911,1714333878865,-500.0,0.00012328,2]
[59912,1714333878875,-500.0,0.00012328,2]
[59913,1714333878884,-500.0,0.00012328,2]
[59914,1714333878894,-500.0,0.00012328,2]
[59915,1714333878903,-500.0,0.00012328,2]
[59916,1714333878912,-500.0,0.00012328,2]
[59917,1714333878921,-500.0,0.00012328,2]
[59918,1714333878931,-500.0,0.00012328,2]
[59919,1714333878941,-544.88,0.00012328,2]
[59920,1714333878950,-500.0,0.00012328,2]
[59921,1714333878960,-500.0,0.00012328,2]
[59922,1714333878970,-500.0,0.00012328,2]
[59923,1714333878980,-500.0,0.00012328,2]
[59924,1714333878989,-500.0,0.00012328,2]
[59925,1714333879000,-346.60666988,0.00012328,2]
[59926,1714333879009,-500.0,0.00012328,2]
[59927,1714333879019,-500.0,0.00012328,2]
[59928,1714333879030,-500.0,0.00012328,2]
[59929,1714333879040,-500.0,0.00012328,2]
[59930,1714333879053,-500.0,0.00012328,2]
[59931,1714333879063,-500.0,0.00012328,2]
[59932,1714333879072,-500.0,0.00012328,2]
[59933,1714333879083,-500.0,0.00012328,2]
[59934,1714333879093,-500.0,0.00012328,2]
[59935,1714333879102,-213.12294824,0.00012328,2]
[59936,1714333879112,-500.0,0.00012328,2]
[59937,1714333879123,-1063.6,0.00012328,2]
[59938,1714333879132,-500.0,0.00012328,2]
[59939,1714333879142,-500.0,0.00012328,2]
[59940,1714333879152,-560.08801127,0.00012328,2]
[59941,1714333879162,-1029.24,0.00012328,2]
[59942,1714333879171,-500.0,0.00012328,2]
[59943,1714333879181,-540.5,0.00012328,2]
[59945,1714333879201,-500.0,0.00012328,2]
[59947,1714333879221,-500.0,0.00012328,2]
[59949,1714333879241,-512.40614344,0.00012328,2]
[59951,1714333879261,-500.0,0.00012328,2]
[59953,1714333879280,-500.0,0.00012328,2]
[59954,1714333879291,-500.0,0.00012328,2]
[59955,1714333879300,-500.0,0.00012328,2]
[59956,1714333879309,-500.0,0.00012328,2]
[59957,1714333879319,-500.0,0.00012328,2]
[59959,1714333879339,-500.0,0.00012328,2]
[59960,1714333879350,-500.0,0.00012328,2]